fUSD/lending_fUSD_20250417
["ID","MTS","AMOUNT","RATE_DAILY","PERIOD"]
[358217984,1744854647081,-178.10217209,0.0005098,30]
[358217985,1744854647098,-1100.0,0.00051,2]
[358217986,1744854647108,-1236.52152504,0.00051,120]
[358217987,1744854647119,-500.0,0.00051008,20]
[358217988,1744854647129,-178.10217209,0.00051035,30]
[358217989,1744854647138,-178.10217209,0.0005109,30]
[358217990,1744854647148,-170.21,0.0005112,2]
[358217991,1744854647158,-500.0,0.00051145,20]
[358217992,1744854647169,-178.10217209,0.00051146,30]
[358217993,1744854647180,-178.10217209,0.00051201,30]
[358217994,1744854647191,-178.10217209,0.00051256,30]
[358217995,1744854647201,-154.770811,0.00051267,120]
[358217996,1744854647211,-151.0,0.00051267,120]
[358217997,1744854647220,-500.0,0.00051282,20]
[358217998,1744854647230,-178.10217209,0.00051312,30]
[358217999,1744854647240,-178.10217209,0.00051367,30]
[358218000,1744854647249,-500.0,0.00051419,20]
[358218001,1744854647259,-178.10217209,0.00051422,30]
[358218002,1744854647269,-151.0,0.00051444,120]
[358218003,1744854647278,-178.10217209,0.00051477,30]
[358218004,1744854647288,-350.0,0.00051496,10]
[358218005,1744854647298,-178.10217209,0.00051533,30]
[358218006,1744854647307,-500.0,0.00051556,20]
[358218007,1744854647413,-658.721737,0.00051588,120]
[358218008,1744854647423,-658.721737,0.00051588,120]
[358218009,1744854647432,-178.10217209,0.00051588,30]
[358218010,1744854647441,-4937.21,0.000516,14]
[358218011,1744854647451,-178.10217209,0.00051643,30]
[358218012,1744854647460,-4870.75239885,0.00051664,15]
[358218013,1744854647470,-4851.08363484,0.00051677,15]
[358218014,1744854647480,-500.0,0.00051693,20]
[358218015,1744854647489,-178.10217209,0.00051699,30]
[358218016,1744854647499,-178.10217209,0.00051754,30]
[358218017,1744854647508,-150.32,0.00051756,120]
[358218018,1744854647517,-2000.0,0.000518,2]
[358218019,1744854647527,-178.10217209,0.00051809,30]
[358218020,1744854647536,-500.0,0.0005183,20]
[358218021,1744854647546,-178.10217209,0.00051865,30]
[358218022,1744854647556,-1651.03,0.00051894,30]
[358218023,1744854647566,-495.57,0.00051894,30]
[358218024,1744854647575,-2500.0,0.000519,18]
[358218025,1744854647585,-2000.0,0.0005192,8]
[358218026,1744854647594,-178.10217209,0.0005192,30]
[358218027,1744854647603,-500.0,0.00051967,20]
[358218028,1744854647613,-178.10217209,0.00051975,30]
[358218029,1744854647622,-387.34,0.00051999,2]
[358218030,1744854647631,-765.90357336,0.00052,30]
[358218031,1744854647641,-1019.0,0.00052,120]
[358218032,1744854647650,-1000.0,0.00052,7]
[358218033,1744854647659,-151.0,0.00052,120]
[358218034,1744854647669,-178.10217209,0.0005203,30]
[358218035,1744854647678,-447.95,0.00052031,30]
[358218036,1744854647687,-1803.98,0.00052031,30]
[358218037,1744854647697,-303.41,0.00052031,30]
[358218038,1744854647706,-152.64,0.00052031,30]
[358218039,1744854647715,-155.71,0.00052031,30]
[358218040,1744854647725,-349.81,0.00052031,30]
[358218041,1744854647734,-153.13,0.00052031,30]
[358218042,1744854647743,-157.37,0.00052031,30]
[358218043,1744854647753,-160.14,0.00052032,30]
[358218044,1744854647762,-24199.5726953,0.00052034,4]
[358218045,1744854647771,-500.0,0.00052036,120]
[358218046,1744854647781,-369.46222396,0.00052043,120]
[358218047,1744854647790,-450.0,0.00052044,10]
[358218048,1744854647803,-120997.863477,0.00052044,4]
[358218049,1744854647812,-151.0,0.00052044,120]
[358218050,1744854647821,-404.752784,0.00052044,120]
[358218051,1744854647830,-404.752784,0.00052044,120]
[358218052,1744854647840,-151.0,0.00052044,120]
[358218053,1744854647850,-151.0,0.00052044,120]
[358218054,1744854647860,-187.555477,0.00052044,120]
[358218055,1744854647869,-151.0,0.00052044,120]
[358218056,1744854647879,-658.721737,0.00052044,120]
[358218057,1744854647888,-658.721737,0.00052044,120]
[358218058,1744854647898,-1161.73,0.00052045,2]
[358218059,1744854647907,-4364.83072302,0.00052053,5]
[358218060,1744854647917,-1460.0,0.00052054,30]
[358218061,1744854647926,-500.0,0.00052054,120]
[358218062,1744854647936,-507.07594302,0.00052054,120]
[358218063,1744854647946,-500.0,0.00052054,120]
[358218064,1744854647955,-500.0,0.00052054,120]
[358218065,1744854647965,-503.60496239,0.00052054,120]
[358218066,1744854647975,-502.26949107,0.00052054,120]
[358218067,1744854647984,-500.0,0.00052054,120]
[358218068,1744854647993,-503.4024316,0.00052054,120]
[358218069,1744854648003,-503.3355494,0.00052054,120]
[358218070,1744854648012,-500.0,0.00052054,120]
[358218071,1744854648022,-503.46282496,0.00052054,120]
[358218072,1744854648031,-633.04,0.00052054,120]
[358218073,1744854648040,-741.12,0.00052054,120]
[358218074,1744854648049,-501.51012898,0.00052054,120]
[358218075,1744854648060,-513.7381443,0.00052054,120]
[358218076,1744854648071,-942.0,0.00052054,120]
[358218077,1744854648080,-505.83306965,0.00052054,30]
[358218078,1744854648090,-371.42043994,0.00052054,120]
[358218079,1744854648099,-502.27975636,0.00052054,120]
[358218080,1744854648111,-503.04328566,0.00052054,120]
[358218081,1744854648121,-512.86544703,0.00052054,120]
[358218082,1744854648132,-502.78698085,0.00052054,120]
[358218083,1744854648143,-500.0,0.00052054,120]
[358218084,1744854648153,-507.73494619,0.00052054,120]
[358218085,1744854648164,-504.03865964,0.00052054,120]
[358218086,1744854648173,-500.0,0.00052054,120]
[358218087,1744854648183,-533.69752168,0.00052054,120]
[358218088,1744854648192,-503.61707037,0.00052054,120]
[358218089,1744854648202,-501.60400611,0.00052054,120]
[358218090,1744854648212,-521.19586335,0.00052054,120]
[358218091,1744854648221,-503.55053284,0.00052054,120]
[358218092,1744854648230,-500.0,0.00052054,120]
[358218093,1744854648239,-515.01997433,0.00052054,120]
[358218094,1744854648249,-506.84875953,0.00052054,120]
[358218095,1744854648258,-1165.78,0.00052054,120]
[358218096,1744854648268,-513.6831186,0.00052054,120]
[358218097,1744854648278,-525.66271737,0.00052054,120]
[358218098,1744854648288,-500.0,0.00052054,120]
[358218099,1744854648297,-503.68906583,0.00052054,120]
[358218100,1744854648307,-500.0,0.00052054,120]
[358218101,1744854648316,-501.37213209,0.00052054,120]
[358218102,1744854648326,-500.0,0.00052054,120]
[358218103,1744854648336,-501.26909389,0.00052054,120]
[358218104,1744854648346,-500.0,0.00052054,120]
[358218105,1744854648357,-500.0,0.00052054,120]
[358218106,1744854648369,-512.30323908,0.00052054,120]
[358218107,1744854648380,-507.95278237,0.00052054,120]
[358218108,1744854648390,-609.86,0.00052054,120]
[358218109,1744854648401,-514.18547407,0.00052054,120]
[358218110,1744854648411,-505.53047733,0.00052054,120]
[358218111,1744854648421,-501.34608572,0.00052054,120]
[358218112,1744854648431,-558.61174971,0.00052054,120]
[358218113,1744854648441,-603.6,0.00052054,30]
[358218114,1744854648451,-500.95032806,0.00052054,120]
[358218115,1744854648462,-500.0,0.00052054,120]
[358218116,1744854648472,-502.40185187,0.00052054,120]
[358218117,1744854648482,-505.26052448,0.00052054,120]
[358218118,1744854648493,-501.0816962,0.00052054,120]
[358218119,1744854648502,-500.0,0.00052054,120]
[358218120,1744854648512,-506.2451364,0.00052054,120]
[358218121,1744854648522,-500.0,0.00052054,120]
[358218122,1744854648532,-504.24675658,0.00052054,120]
[358218123,1744854648541,-503.6265008,0.00052054,120]
[358218124,1744854648551,-501.81468779,0.00052054,120]
[358218125,1744854648560,-507.70861123,0.00052054,120]
[358218126,1744854648570,-502.20599143,0.00052054,120]
[358218127,1744854648580,-500.0,0.00052054,120]
[358218128,1744854648589,-500.0,0.00052054,120]
[358218129,1744854648599,-505.02434404,0.00052054,120]
[358218130,1744854648609,-505.36836632,0.00052054,120]
[358218131,1744854648620,-716.81,0.00052054,120]
[358218132,1744854648631,-1153.37,0.00052054,120]
[358218133,1744854648640,-500.0,0.00052054,120]
[358218134,1744854648650,-503.68809381,0.00052054,120]
[358218135,1744854648659,-500.0,0.00052054,120]
[358218136,1744854648670,-503.64196141,0.00052054,120]
[358218137,1744854648680,-500.0,0.00052054,120]
[358218138,1744854648689,-500.0,0.00052054,120]
[358218140,1744854648699,-500.0,0.00052054,120]
[358218141,1744854648709,-500.0,0.00052054,120]
[358218142,1744854648719,-500.0,0.00052054,120]
[358218143,1744854648728,-500.0,0.00052054,120]
[358218144,1744854648738,-501.16873738,0.00052054,120]
[358218145,1744854648748,-511.85880124,0.00052054,120]
[358218146,1744854648758,-500.0,0.00052054,120]
[358218147,1744854648768,-1067.9,0.00052054,8]
[358218148,1744854648778,-500.0,0.00052054,120]
[358218149,1744854648788,-500.0,0.00052054,120]
[358218150,1744854648798,-500.0,0.00052054,120]
[358218151,1744854648808,-151.0,0.00052054,120]
[358218152,1744854648818,-500.0,0.00052054,120]
[358218153,1744854648827,-500.0,0.00052054,120]
[358218154,1744854648837,-500.0,0.00052054,120]
[358218155,1744854648848,-503.70268595,0.00052054,120]
[358218156,1744854648858,-500.0,0.00052054,120]
[358218157,1744854648868,-501.55736406,0.00052054,120]
[358218158,1744854648879,-834.1,0.00052054,120]
[358218159,1744854648889,-507.2725242,0.00052054,120]
[358218160,1744854648899,-504.14845176,0.00052054,120]
[358218161,1744854648909,-503.74040887,0.00052054,120]
[358218162,1744854648918,-503.84596927,0.00052054,120]
[358218163,1744854648928,-554.79290665,0.00052054,120]
[358218164,1744854648938,-504.01442991,0.00052054,120]
[358218165,1744854648947,-516.61322287,0.00052054,120]
[358218166,1744854648957,-500.0,0.00052054,120]
[358218167,1744854649063,-501.27677243,0.00052054,120]
[358218168,1744854649076,-500.0,0.00052054,120]
[358218169,1744854649087,-562.42585962,0.00052054,120]
[358218170,1744854649097,-500.0,0.00052054,120]
[358218171,1744854649107,-500.0,0.00052054,120]
[358218172,1744854649117,-508.72282023,0.00052054,120]
[358218173,1744854649127,-502.98287312,0.00052054,120]
[358218174,1744854649136,-500.0,0.00052054,120]
[358218175,1744854649147,-507.31849322,0.00052054,120]
[358218176,1744854649158,-418.89911833,0.00052054,120]
[358218177,1744854649168,-500.0,0.00052054,120]
[358218178,1744854649177,-709.13,0.00052054,120]
[358218179,1744854649187,-501.85880069,0.00052054,120]
[358218180,1744854649197,-500.0,0.00052054,120]
[358218181,1744854649207,-505.76806015,0.00052054,120]
[358218182,1744854649217,-516.08624192,0.00052054,120]
[358218183,1744854649226,-502.64068207,0.00052054,120]
[358218184,1744854649236,-508.10113072,0.00052054,120]
[358218185,1744854649246,-500.54173411,0.00052054,120]
[358218186,1744854649256,-500.0,0.00052054,120]
[358218187,1744854649266,-500.0,0.00052054,120]
[358218188,1744854649276,-508.36916458,0.00052054,120]
[358218189,1744854649286,-508.1960698,0.00052054,120]
[358218190,1744854649296,-529.22656916,0.00052054,120]
[358218191,1744854649305,-503.97891194,0.00052054,120]
[358218192,1744854649315,-507.6,0.00052054,120]
[358218193,1744854649325,-500.0,0.00052054,120]
[358218194,1744854649335,-376.79485208,0.00052054,120]
[358218195,1744854649344,-500.0,0.00052054,120]
[358218196,1744854649354,-521.11323516,0.00052054,120]
[358218197,1744854649364,-500.0,0.00052054,120]
[358218198,1744854649375,-525.12825017,0.00052054,120]
[358218199,1744854649384,-508.88386845,0.00052054,120]
[358218200,1744854649394,-503.75039041,0.00052054,120]
[358218201,1744854649404,-517.12089389,0.00052054,120]
[358218202,1744854649415,-511.86904495,0.00052054,120]
[358218203,1744854649424,-500.0,0.00052054,120]
[358218204,1744854649435,-530.60307606,0.00052054,120]
[358218205,1744854649445,-500.0,0.00052054,120]
[358218206,1744854649458,-548.41253841,0.00052054,120]
[358218207,1744854649471,-504.05408375,0.00052054,120]
[358218208,1744854649481,-631.81,0.00052054,120]
[358218209,1744854649492,-500.0,0.00052054,120]
[358218210,1744854649502,-500.0,0.00052054,120]
[358218211,1744854649512,-526.71943611,0.00052054,120]
[358218212,1744854649522,-521.1209747,0.00052054,120]
[358218213,1744854649534,-518.3680317,0.00052054,120]
[358218214,1744854649543,-534.97163365,0.00052054,120]
[358218215,1744854649553,-508.2503664,0.00052054,120]
[358218216,1744854649563,-500.0,0.00052054,120]
[358218217,1744854649572,-548.25259611,0.00052054,120]
[358218218,1744854649581,-505.32036593,0.00052054,120]
[358218219,1744854649591,-500.0,0.00052054,120]
[358218220,1744854649602,-502.80314158,0.00052054,120]
[358218221,1744854649611,-500.0,0.00052054,120]
[358218222,1744854649622,-501.44193243,0.00052054,120]
[358218223,1744854649631,-515.72453261,0.00052054,120]
[358218224,1744854649640,-158.01907014,0.00052054,120]
[358218225,1744854649650,-500.0,0.00052054,120]
[358218226,1744854649659,-503.46514663,0.00052054,120]
[358218227,1744854649668,-533.9017163,0.00052054,120]
[358218228,1744854649677,-519.33520328,0.00052054,120]
[358218229,1744854649687,-518.32946243,0.00052054,120]
[358218230,1744854649696,-503.69914263,0.00052054,30]
[358218231,1744854649705,-541.302119,0.00052054,120]
[358218232,1744854649715,-513.23434831,0.00052054,120]
[358218233,1744854649724,-508.87568057,0.00052054,120]
[358218234,1744854649734,-500.0,0.00052054,120]
[358218235,1744854649744,-511.3283188,0.00052054,120]
[358218236,1744854649753,-504.54965243,0.00052054,120]
[358218237,1744854649763,-500.0,0.00052054,120]
[358218238,1744854649772,-504.55875589,0.00052054,120]
[358218239,1744854649781,-502.51982341,0.00052054,120]
[358218240,1744854649791,-500.0,0.00052054,120]
[358218241,1744854649800,-500.0,0.00052054,120]
[358218242,1744854649809,-648.38820241,0.00052054,120]
[358218243,1744854649819,-523.73312924,0.00052054,120]
[358218244,1744854649828,-503.05046409,0.00052054,120]
[358218245,1744854649837,-500.0,0.00052054,120]
[358218246,1744854649848,-500.0,0.00052054,120]
[358218247,1744854649857,-217.02953859,0.00052054,120]
[358218248,1744854649867,-510.98954627,0.00052054,120]
[358218249,1744854649877,-503.86763887,0.00052054,120]
[358218250,1744854649887,-501.59521913,0.00052054,120]
[358218251,1744854649896,-500.0,0.00052054,120]
[358218252,1744854649906,-505.66893766,0.00052054,120]
[358218253,1744854649915,-500.0,0.00052054,120]
[358218254,1744854649924,-513.45664641,0.00052054,120]
[358218255,1744854649933,-522.3680271,0.00052054,120]
[358218256,1744854649943,-599.58,0.00052054,120]
[358218257,1744854649953,-516.39045507,0.00052054,120]
[358218258,1744854649962,-500.0,0.00052054,120]
[358218259,1744854649972,-518.91991736,0.00052054,120]
[358218260,1744854649983,-505.74709,0.00052054,120]
[358218261,1744854649993,-500.0,0.00052054,120]
[358218262,1744854650003,-737.91,0.00052054,120]
[358218263,1744854650012,-521.82393744,0.00052054,120]
[358218264,1744854650021,-509.87786876,0.00052054,120]
[358218265,1744854650031,-631.98731042,0.00052054,120]
[358218266,1744854650041,-500.0,0.00052054,120]
[358218267,1744854650050,-587.84,0.00052054,120]
[358218268,1744854650062,-499.86838448,0.00052054,120]
[358218269,1744854650073,-543.4921478,0.00052054,120]
[358218270,1744854650082,-506.68733974,0.00052054,120]
[358218271,1744854650092,-513.72277471,0.00052054,120]
[358218272,1744854650101,-500.0,0.00052054,120]
[358218273,1744854650111,-508.4494283,0.00052054,120]
[358218274,1744854650121,-522.63013227,0.00052054,120]
[358218275,1744854650130,-500.0,0.00052054,120]
[358218276,1744854650140,-500.0,0.00052054,120]
[358218277,1744854650151,-500.0,0.00052054,120]
[358218278,1744854650160,-504.82116437,0.00052054,120]
[358218279,1744854650169,-500.0,0.00052054,120]
[358218280,1744854650178,-500.0,0.00052054,120]
[358218281,1744854650188,-509.78807284,0.00052054,120]
[358218282,1744854650197,-500.0,0.00052054,120]
[358218283,1744854650207,-500.0,0.00052054,120]
[358218284,1744854650216,-706.998014,0.00052054,120]
[358218285,1744854650226,-500.0,0.00052054,120]
[358218286,1744854650236,-515.22372929,0.00052054,120]
[358218287,1744854650245,-195.739518,0.00052054,120]
[358218288,1744854650254,-500.0,0.00052054,120]
[358218289,1744854650263,-500.0,0.00052054,120]
[358218290,1744854650272,-505.4437776,0.00052054,120]
[358218291,1744854650282,-154.386344,0.00052054,120]
[358218292,1744854650292,-541.35663388,0.00052054,120]
[358218293,1744854650302,-500.0,0.00052054,120]
[358218294,1744854650311,-557.74844567,0.00052054,120]
[358218295,1744854650320,-404.752784,0.00052054,120]
[358218296,1744854650330,-404.752784,0.00052054,120]
[358218297,1744854650339,-531.37071242,0.00052054,120]
[358218298,1744854650348,-500.0,0.00052054,120]
[358218299,1744854650357,-505.24587684,0.00052054,120]
[358218300,1744854650367,-348.87551267,0.00052054,120]
[358218301,1744854650377,-507.55838839,0.00052054,120]
[358218302,1744854650387,-404.752784,0.00052054,120]
[358218303,1744854650396,-404.752785,0.00052054,120]
[358218304,1744854650405,-504.06315672,0.00052054,120]
[358218305,1744854650414,-506.77751539,0.00052054,120]
[358218306,1744854650424,-500.0,0.00052054,120]
[358218307,1744854650433,-505.49442088,0.00052054,120]
[358218308,1744854650443,-500.0,0.00052054,120]
[358218309,1744854650452,-500.0,0.00052054,120]
[358218310,1744854650461,-504.44888557,0.00052054,120]
[358218311,1744854650470,-519.67934595,0.00052054,120]
[358218312,1744854650479,-473.03057152,0.00052054,120]
[358218313,1744854650489,-153.090261,0.00052054,120]
[358218314,1744854650582,-500.0,0.00052054,120]
[358218315,1744854650591,-506.91274093,0.00052054,120]
[358218316,1744854650601,-500.0,0.00052054,2]
[358218317,1744854650610,-365.925591,0.00052054,120]
[358218318,1744854650620,-508.509929,0.00052054,120]
[358218319,1744854650629,-1258.89,0.00052054,120]
[358218320,1744854650638,-500.0,0.00052054,120]
[358218321,1744854650647,-799.91,0.00052054,120]
[358218322,1744854650657,-500.0,0.00052054,120]
[358218323,1744854650666,-509.6053539,0.00052054,120]
[358218324,1744854650676,-500.0,0.00052054,120]
[358218325,1744854650685,-500.0,0.00052054,120]
[358218326,1744854650694,-500.0,0.00052054,120]
[358218327,1744854650703,-513.78226408,0.00052054,120]
[358218328,1744854650713,-500.0,0.00052054,120]
[358218329,1744854650722,-500.0,0.00052054,120]
[358218330,1744854650731,-500.0,0.00052054,120]
[358218331,1744854650740,-500.0,0.00052054,120]
[358218332,1744854650750,-500.0,0.00052054,120]
[358218333,1744854650759,-500.0,0.00052054,120]
[358218334,1744854650769,-514.93995896,0.00052054,120]
[358218335,1744854650778,-514.02739093,0.00052054,120]
[358218336,1744854650788,-511.6851332,0.00052054,120]
[358218337,1744854650797,-500.0,0.00052054,30]
[358218338,1744854650806,-500.0,0.00052054,120]
[358218339,1744854650816,-506.52971815,0.00052054,120]
[358218340,1744854650825,-646.00017925,0.00052054,120]
[358218341,1744854650834,-505.83457892,0.00052054,120]
[358218342,1744854650843,-505.64886715,0.00052054,120]
[358218343,1744854650852,-500.78555867,0.00052054,120]
[358218344,1744854650862,-531.73485269,0.00052054,120]
[358218345,1744854650871,-504.93199966,0.00052054,120]
[358218346,1744854650881,-3015.912726,0.00052054,120]
[358218347,1744854650891,-1077.43619806,0.00052054,120]
[358218348,1744854650900,-500.0,0.00052054,120]
[358218349,1744854650909,-500.0,0.00052054,120]
[358218350,1744854650918,-500.0,0.00052054,120]
[358218351,1744854650927,-500.0,0.00052054,120]
[358218352,1744854650937,-518.24644232,0.00052054,120]
[358218353,1744854650947,-500.0,0.00052054,120]
[358218354,1744854650956,-507.87874423,0.00052054,120]
[358218355,1744854650966,-504.25963704,0.00052054,120]
[358218356,1744854650976,-500.0,0.00052054,120]
[358218357,1744854650985,-512.25952253,0.00052054,120]
[358218358,1744854650995,-542.70888675,0.00052054,120]
[358218359,1744854651004,-512.68213735,0.00052054,120]
[358218360,1744854651013,-500.0,0.00052054,120]
[358218361,1744854651023,-500.0,0.00052054,120]
[358218362,1744854651032,-500.0,0.00052054,120]
[358218363,1744854651041,-500.0,0.00052054,120]
[358218364,1744854651050,-500.0,0.00052054,120]
[358218365,1744854651060,-512.35850292,0.00052054,120]
[358218366,1744854651071,-508.64503194,0.00052054,120]
[358218367,1744854651081,-500.0,0.00052054,120]
[358218368,1744854651091,-1009.73,0.00052054,120]
[358218369,1744854651100,-502.31249058,0.00052054,120]
[358218370,1744854651110,-500.0,0.00052054,120]
[358218371,1744854651120,-501.78197742,0.00052054,120]
[358218372,1744854651129,-502.42960206,0.00052054,120]
[358218373,1744854651139,-517.44276005,0.00052054,120]
[358218374,1744854651149,-522.3298156,0.00052054,120]
[358218375,1744854651158,-500.0,0.00052054,120]
[358218376,1744854651168,-502.95074177,0.00052054,120]
[358218377,1744854651178,-500.0,0.00052054,120]
[358218378,1744854651187,-500.0,0.00052054,120]
[358218379,1744854651196,-500.0,0.00052054,120]
[358218380,1744854651205,-513.26237432,0.00052054,120]
[358218381,1744854651215,-500.0,0.00052054,120]
[358218382,1744854651223,-155.529494,0.00052054,120]
[358218383,1744854651233,-500.0,0.00052054,120]
[358218384,1744854651243,-500.0,0.00052054,120]
[358218385,1744854651252,-500.0,0.00052054,120]
[358218386,1744854651261,-500.0,0.00052054,120]
[358218387,1744854651270,-500.0,0.00052054,120]
[358218388,1744854651280,-514.10776813,0.00052054,120]
[358218389,1744854651289,-500.0,0.00052054,120]
[358218390,1744854651298,-503.93357217,0.00052054,120]
[358218391,1744854651308,-500.0,0.00052054,120]
[358218392,1744854651317,-500.0,0.00052054,120]
[358218393,1744854651326,-500.0,0.00052054,120]
[358218394,1744854651336,-500.0,0.00052054,120]
[358218395,1744854651345,-500.0,0.00052054,120]
[358218396,1744854651354,-500.0,0.00052054,120]
[358218397,1744854651363,-558.87109043,0.00052054,120]
[358218398,1744854651372,-500.0,0.00052054,120]
[358218399,1744854651381,-500.0,0.00052054,120]
[358218400,1744854651391,-500.0,0.00052054,120]
[358218401,1744854651400,-526.55,0.00052054,120]
[358218402,1744854651410,-500.0,0.00052054,120]
[358218403,1744854651419,-500.0,0.00052054,120]
[358218404,1744854651428,-500.0,0.00052054,120]
[358218405,1744854651438,-500.0,0.00052054,120]
[358218406,1744854651447,-500.0,0.00052054,120]
[358218407,1744854651456,-500.0,0.00052054,120]
[358218408,1744854651466,-516.1332272,0.00052054,120]
[358218409,1744854651476,-500.0,0.00052054,120]
[358218410,1744854651485,-500.0,0.00052054,120]
[358218411,1744854651494,-500.0,0.00052054,120]
[358218412,1744854651504,-500.0,0.00052054,120]
[358218413,1744854651513,-500.0,0.00052054,120]
[358218414,1744854651523,-500.0,0.00052054,120]
[358218415,1744854651532,-500.0,0.00052054,120]
[358218416,1744854651542,-151.0,0.00052054,120]
[358218417,1744854651552,-151.0,0.00052054,120]
[358218418,1744854651561,-500.0,0.00052054,120]
[358218419,1744854651570,-598.11604572,0.00052054,120]
[358218420,1744854651579,-500.0,0.00052054,120]
[358218421,1744854651589,-885.35,0.00052054,120]
[358218422,1744854651598,-500.0,0.00052054,120]
[358218423,1744854651606,-500.0,0.00052054,120]
[358218424,1744854651616,-500.0,0.00052054,120]
[358218425,1744854651625,-500.0,0.00052054,120]
[358218426,1744854651634,-500.0,0.00052054,61]
[358218427,1744854651644,-522.91366962,0.00052054,120]
[358218428,1744854651653,-500.0,0.00052054,120]
[358218429,1744854651663,-500.0,0.00052054,120]
[358218430,1744854651672,-500.0,0.00052054,120]
[358218431,1744854651681,-500.0,0.00052054,120]
[358218432,1744854651691,-500.0,0.00052054,120]
[358218433,1744854651701,-722.16,0.00052054,120]
[358218434,1744854651710,-500.0,0.00052054,7]
[358218435,1744854651719,-503.47906862,0.00052054,120]
[358218436,1744854651729,-500.0,0.00052054,120]
[358218437,1744854651738,-506.31851451,0.00052054,120]
[358218438,1744854651747,-730.39,0.00052054,118]
[358218439,1744854651756,-500.0,0.00052054,120]
[358218440,1744854651765,-517.30374055,0.00052054,120]
[358218441,1744854651774,-500.0,0.00052054,120]
[358218442,1744854651783,-501.84339005,0.00052054,120]
[358218443,1744854651792,-512.01371839,0.00052054,120]
[358218444,1744854651801,-500.0,0.00052054,120]
[358218445,1744854651811,-500.0,0.00052054,120]
[358218446,1744854651820,-502.29253946,0.00052054,120]
[358218447,1744854651829,-522.42596289,0.00052054,120]
[358218448,1744854651838,-500.0,0.00052054,120]
[358218449,1744854651928,-500.0,0.00052054,120]
[358218450,1744854651938,-504.9567316,0.00052054,120]
[358218451,1744854651947,-507.39557771,0.00052054,120]
[358218452,1744854651957,-521.05654247,0.00052054,120]
[358218453,1744854651966,-500.0,0.00052054,120]
[358218454,1744854651975,-500.0,0.00052054,120]
[358218455,1744854651984,-506.90302996,0.00052054,120]
[358218456,1744854651993,-500.0,0.00052054,120]
[358218457,1744854652003,-250.131687,0.00052054,120]
[358218458,1744854652013,-500.0,0.00052054,120]
[358218459,1744854652022,-500.0,0.00052054,120]
[358218460,1744854652031,-500.0,0.00052054,120]
[358218461,1744854652040,-958.07,0.00052054,120]
[358218462,1744854652049,-500.0,0.00052054,120]
[358218463,1744854652059,-500.0,0.00052054,120]
[358218464,1744854652069,-530.49687026,0.00052054,120]
[358218465,1744854652081,-500.0,0.00052054,120]
[358218466,1744854652090,-1000.0,0.00052054,120]
[358218467,1744854652099,-514.90940583,0.00052054,120]
[358218468,1744854652110,-500.0,0.00052054,120]
[358218469,1744854652120,-512.07273311,0.00052054,120]
[358218470,1744854652129,-500.0,0.00052054,120]
[358218471,1744854652138,-552.8979044,0.00052054,120]
[358218472,1744854652149,-500.0,0.00052054,120]
[358218473,1744854652158,-528.83835976,0.00052054,120]
[358218474,1744854652168,-536.14466349,0.00052054,120]
[358218475,1744854652177,-1222.41,0.00052054,120]
[358218476,1744854652187,-572.70800168,0.00052054,120]
[358218477,1744854652196,-504.30085553,0.00052054,120]
[358218478,1744854652206,-500.0,0.00052054,120]
[358218479,1744854652215,-533.12279614,0.00052054,120]
[358218480,1744854652224,-500.84826673,0.00052054,120]
[358218481,1744854652234,-500.0,0.00052054,120]
[358218482,1744854652244,-500.0,0.00052054,120]
[358218483,1744854652253,-500.0,0.00052054,120]
[358218484,1744854652262,-592.51,0.00052054,120]